lending/lending_fUSD_20260209
["ID","MTS","AMOUNT","RATE_DAILY","PERIOD"]
[404904935,1770671516003,-151.0,0.00039726,120]
[404904936,1770671516013,-151.0,0.00039726,120]
[404904937,1770671516022,-151.0,0.00039726,120]
[404904938,1770671516032,-151.0,0.00039726,120]
[404904939,1770671516045,-151.0,0.00039726,120]
[404904940,1770671516054,-151.0,0.00039726,120]
[404904941,1770671516063,-151.0,0.00039726,120]
[404904942,1770671516073,-151.0,0.00039726,120]
[404904943,1770671516084,-187.304363,0.00039726,120]
[404904944,1770671516093,-151.0,0.00039726,60]
[404904945,1770671516105,-1719.288627,0.00039726,7]
[404904946,1770671516115,-1719.288627,0.00039726,7]
[404904947,1770671516124,-1719.288627,0.00039726,7]
[404904948,1770671516134,-1719.288627,0.00039726,7]
[404904949,1770671516143,-1719.288627,0.00039726,7]
[404904950,1770671516152,-1719.288627,0.00039726,7]
[404904951,1770671516161,-1719.288627,0.00039726,7]
[404904952,1770671516170,-1719.288627,0.00039726,7]
[404904953,1770671516180,-1719.288627,0.00039726,7]
[404904954,1770671516190,-1719.288627,0.00039726,7]
[404904955,1770671516200,-1719.288627,0.00039726,7]
[404904956,1770671516210,-1719.288627,0.00039726,7]
[404904957,1770671516219,-1719.288627,0.00039726,7]
[404904958,1770671516228,-1719.288627,0.00039726,7]
[404904959,1770671516238,-1719.288627,0.00039726,7]
[404904960,1770671516248,-1719.288627,0.00039726,7]
[404904961,1770671516259,-1719.288627,0.00039726,7]
[404904962,1770671516268,-1719.288627,0.00039726,7]
[404904963,1770671516278,-1719.288627,0.00039726,7]
[404904964,1770671516287,-1719.288636,0.00039726,7]
[404904965,1770671516297,-150.0,0.000398,60]
[404904966,1770671516308,-2756.29,0.000398,30]
[404904967,1770671516318,-504.45435492,0.00039896,5]
[404904968,1770671516329,-1500.0,0.00039896,5]
[404904969,1770671516340,-1500.0,0.00039896,2]
[404904970,1770671516350,-1500.0,0.00039896,5]
[404904971,1770671516360,-1500.6861044,0.00039896,3]
[404904972,1770671516369,-1086.3781423,0.00039896,5]
[404904973,1770671516378,-1023.37656257,0.00039896,5]
[404904974,1770671516387,-1500.0,0.00039896,5]
[404904975,1770671516397,-1500.0,0.00039896,5]
[404904976,1770671516407,-1006.10959782,0.00039896,5]
[404904977,1770671516416,-1500.0,0.00039896,5]
[404904978,1770671516427,-1500.0,0.00039896,5]
[404904979,1770671516436,-847.92232532,0.00039896,5]
[404904980,1770671516445,-10073.59865083,0.000399,30]
[404904981,1770671516454,-155.0,0.0004,120]
[404904982,1770671516463,-153.0,0.0004,120]
[404904983,1770671516472,-160.0,0.0004,120]
[404904984,1770671516483,-8153.46729196,0.0004,120]
[404904985,1770671516492,-50000.0,0.0004,30]
[404904986,1770671516501,-70000.0,0.0004,120]
[404904987,1770671516511,-250.0,0.0004,45]
[404904988,1770671516522,-22500.0,0.0004,120]
[404904989,1770671516532,-25000.0,0.0004,120]
[404904990,1770671516541,-271.41,0.0004,120]
[404904991,1770671516553,-10000.005956,0.0004,120]
[404904992,1770671516563,-253.0,0.0004,30]
[404904993,1770671516573,-15175.68,0.0004,120]
[404904994,1770671516582,-500.0,0.0004,2]
[404904995,1770671516591,-18875.89,0.0004,14]
[404904996,1770671516601,-152.0,0.00040143,3]
[404904997,1770671516610,-1024.30729403,0.0004017,5]
[404904998,1770671516619,-1556.71760867,0.00040223,2]
[404904999,1770671516628,-300.0,0.00040223,2]
[404905000,1770671516637,-500.0,0.00040223,2]
[404905001,1770671516646,-300.0,0.00040223,2]
[404905002,1770671516656,-1556.71760867,0.00040223,2]
[404905003,1770671516666,-300.0,0.00040223,2]
[404905004,1770671516675,-300.0,0.00040223,2]
[404905005,1770671516684,-1556.71760867,0.00040223,2]
[404905006,1770671516693,-300.0,0.00040223,2]
[404905007,1770671516702,-300.0,0.00040223,2]
[404905008,1770671516712,-1556.71760867,0.00040223,2]
[404905009,1770671516720,-300.0,0.00040223,2]
[404905010,1770671516730,-300.0,0.00040223,2]
[404905011,1770671516738,-1556.71760867,0.00040223,2]
[404905012,1770671516749,-300.0,0.00040223,2]
[404905013,1770671516759,-300.0,0.00040223,2]
[404905014,1770671516768,-1556.71760867,0.00040223,2]
[404905015,1770671516777,-376.61093428,0.00040223,2]
[404905016,1770671516786,-446.45736636,0.00040223,2]
[404905017,1770671516795,-1556.71760867,0.00040223,2]
[404905018,1770671516804,-384.49673931,0.00040223,2]
[404905019,1770671516813,-300.84977129,0.00040223,2]
[404905020,1770671516822,-300.79812649,0.00040223,2]
[404905021,1770671516831,-479.7067035,0.00040223,2]
[404905022,1770671516843,-22500.0,0.00040375,120]
[404905023,1770671516853,-150.0,0.00040406,2]
[404905024,1770671516862,-2000.0,0.00040444,5]
[404905025,1770671516871,-1834.55614105,0.00040444,2]
[404905026,1770671516881,-1448.85583062,0.00040444,5]
[404905027,1770671516890,-2000.0,0.00040444,5]
[404905028,1770671516899,-2000.0,0.00040444,5]
[404905029,1770671516908,-1511.63916138,0.00040444,5]
[404905030,1770671516919,-929.9949039,0.00040444,5]
[404905031,1770671516929,-508.5176691,0.0004047,60]
[404905032,1770671516940,-6259.99862553,0.00040541,2]
[404905033,1770671516950,-2228.9,0.00040547,120]
[404905034,1770671516960,-1000.0,0.00040548,2]
[404905035,1770671517052,-681.38,0.000407,14]
[404905036,1770671517062,-681.39,0.000407,14]
[404905037,1770671517071,-2118.36,0.000407,30]
[404905038,1770671517081,-22500.0,0.0004075,120]
[404905039,1770671517092,-25000.0,0.0004075,120]
[404905040,1770671517100,-150.0,0.000408,63]
[404905041,1770671517111,-167.49899135,0.00040838,2]
[404905042,1770671517120,-1510.93637167,0.00040992,5]
[404905043,1770671517130,-2500.0,0.00040992,5]
[404905044,1770671517139,-8105.0,0.00041,5]
[404905045,1770671517148,-778.0,0.00041,120]
[404905046,1770671517157,-65375.37215837,0.00041,30]
[404905047,1770671517167,-500.0,0.00041095,120]
[404905048,1770671517176,-500.0,0.00041095,120]
[404905049,1770671517187,-500.0,0.00041095,120]
[404905050,1770671517197,-500.0,0.00041095,120]
[404905051,1770671517207,-500.0,0.00041095,120]
[404905052,1770671517216,-500.0,0.00041095,120]
[404905053,1770671517227,-500.0,0.00041095,120]
[404905054,1770671517237,-500.0,0.00041095,120]
[404905055,1770671517246,-500.0,0.00041095,120]
[404905056,1770671517257,-500.0,0.00041095,120]
[404905057,1770671517266,-435.66120521,0.00041095,120]
[404905058,1770671517275,-2756.29,0.000411,30]
[404905059,1770671517285,-22500.0,0.00041125,120]
[404905060,1770671517295,-153.0,0.000412,120]
[404905061,1770671517306,-18875.89,0.000412,14]
[404905062,1770671517317,-511.0,0.00041232,12]
[404905063,1770671517326,-155.0,0.000414,120]
[404905064,1770671517336,-5516.07,0.000415,120]
[404905065,1770671517347,-25000.0,0.000415,120]
[404905066,1770671517356,-2272.31084228,0.0004154,10]
[404905067,1770671517366,-11514.0,0.000417,117]
[404905068,1770671517375,-12355.477,0.000418,120]
[404905069,1770671517384,-12355.477,0.000418,120]
[404905070,1770671517393,-12355.47,0.000418,120]
[404905071,1770671517402,-150.0,0.000418,66]
[404905072,1770671517411,-2118.36,0.000419,30]
[404905073,1770671517420,-164.84,0.00041978,120]
[404905074,1770671517430,-21057.34454758,0.00042,120]
[404905075,1770671517439,-681.38,0.00042,14]
[404905076,1770671517448,-500.0,0.00042,2]
[404905077,1770671517459,-500.0,0.00042,2]
[404905078,1770671517468,-1363.80491737,0.0004201,2]
[404905079,1770671517478,-150.4593557,0.00042065,2]
[404905080,1770671517487,-164.84846832,0.00042078,120]
[404905081,1770671517497,-151.0,0.00042118,14]
[404905082,1770671517506,-37525.34115863,0.00042121,120]
[404905083,1770671517515,-1631.739,0.00042159,2]
[404905084,1770671517524,-4869.77732901,0.000422,2]
[404905085,1770671517536,-17912.39,0.0004225,120]
[404905086,1770671517546,-2756.29,0.000423,30]
[404905087,1770671517556,-681.39,0.000424,14]
[404905088,1770671517566,-150.0,0.00042426,120]
[404905089,1770671517575,-500.0,0.00042438,120]
[404905090,1770671517584,-500.0,0.00042438,120]
[404905091,1770671517593,-500.0,0.00042466,120]
[404905092,1770671517602,-10998.6,0.00042483,30]
[404905093,1770671517611,-300.100412,0.00042486,111]
[404905094,1770671517620,-10000.0,0.000425,2]
[404905095,1770671517631,-153.0,0.000425,120]
[404905096,1770671517640,-3000.00007513,0.000425,120]
[404905097,1770671517651,-111438.39949896,0.000425,120]
[404905098,1770671517660,-175.892067,0.000425,120]
[404905099,1770671517669,-175.892067,0.000425,120]
[404905100,1770671517678,-175.892067,0.000425,120]
[404905101,1770671517687,-175.892067,0.000425,120]
[404905102,1770671517696,-17597.76,0.00042504,120]
[404905103,1770671517705,-500.0,0.00042521,120]
[404905104,1770671517715,-500.0,0.00042575,120]
[404905105,1770671517724,-500.0,0.00042575,120]
[404905106,1770671517734,-500.0,0.00042576,120]
[404905107,1770671517745,-500.0,0.0004263,120]
[404905108,1770671517755,-1089.99397563,0.00042676,120]
[404905109,1770671517764,-500.0,0.00042685,120]
[404905110,1770671517773,-155.0,0.000427,120]
[404905111,1770671517782,-500.0,0.00042712,120]
[404905112,1770671517791,-2228.9,0.00042739,120]
[404905113,1770671517801,-2500.0,0.0004274,7]
[404905114,1770671517811,-600.64327062,0.0004274,120]
[404905115,1770671517820,-50000.0,0.0004275,120]
[404905116,1770671517829,-150.0,0.000428,69]
[404905117,1770671517839,-3300.0,0.000428,120]
[404905118,1770671517850,-164.0,0.00042843,16]
[404905119,1770671517859,-840.0,0.00042849,16]
[404905120,1770671517870,-500.0,0.00042849,120]
[404905121,1770671517880,-50000.0,0.0004285,120]
[404905122,1770671517889,-2075.96654312,0.000429,120]
[404905123,1770671517900,-178.3954323,0.00042938,30]
[404905124,1770671517910,-6748.79851557,0.00042939,2]
[404905125,1770671517920,-50000.0,0.0004295,120]
[404905126,1770671517932,-118796.00863343,0.00042998,5]
[404905127,1770671517942,-3243.0,0.00043,120]
[404905128,1770671517952,-4484.51297587,0.00043,120]
[404905129,1770671517962,-1500.00829664,0.00043,120]
[404905130,1770671517974,-419.0,0.00043,120]
[404905131,1770671517984,-65000.0,0.00043,120]
[404905132,1770671517994,-160.0,0.00043,30]
[404905133,1770671518002,-160.0,0.00043,30]
[404905134,1770671518012,-500.0,0.00043,2]
[404905135,1770671518022,-18875.89,0.00043,14]
[404905136,1770671518031,-150.0,0.00043021,30]
[404905137,1770671518041,-150.88168721,0.00043021,30]
[404905138,1770671518051,-150.0,0.00043021,30]
[404905139,1770671518060,-150.0,0.00043021,30]
[404905140,1770671518069,-150.0,0.00043021,30]
[404905141,1770671518078,-150.0,0.00043021,30]
[404905142,1770671518087,-150.0,0.00043021,30]
[404905143,1770671518097,-150.0,0.00043021,30]
[404905144,1770671518105,-151.05775603,0.00043021,30]
[404905145,1770671518115,-150.62654616,0.00043021,30]
[404905146,1770671518124,-150.0,0.00043021,30]
[404905147,1770671518133,-156.19915918,0.00043021,30]
[404905148,1770671518143,-150.85391353,0.00043021,30]
[404905149,1770671518153,-153.23658064,0.00043021,30]
[404905150,1770671518163,-150.0,0.00043021,30]
[404905151,1770671518172,-50000.0,0.0004305,120]
[404905152,1770671518182,-50000.0,0.0004305,120]
[404905153,1770671518192,-151.0,0.00043097,120]
[404905154,1770671518202,-474932.6116372,0.000431,120]
[404905155,1770671518215,-13156.22,0.000431,120]
[404905156,1770671518225,-13156.22,0.000431,120]
[404905157,1770671518235,-13156.22,0.000431,120]
[404905158,1770671518246,-34574.0,0.00043108,30]
[404905159,1770671518256,-164.0,0.00043161,16]
[404905160,1770671518266,-319.0,0.00043172,16]
[404905161,1770671518276,-164.0,0.00043174,16]
[404905162,1770671518287,-164.0,0.00043174,16]
[404905163,1770671518296,-50000.0,0.000432,120]
[404905164,1770671518306,-175.892067,0.000432,120]
[404905165,1770671518316,-175.892067,0.000432,120]
[404905166,1770671518326,-175.892067,0.000432,120]
[404905167,1770671518335,-175.892067,0.000432,120]
[404905168,1770671518345,-2032.08301255,0.0004322,2]
[404905169,1770671518354,-6837.19693279,0.00043238,9]
[404905170,1770671518363,-5000.0,0.00043238,8]
[404905171,1770671518373,-5000.0,0.00043238,14]
[404905172,1770671518382,-5000.0,0.00043238,10]
[404905173,1770671518391,-5000.0,0.00043238,8]
[404905174,1770671518401,-152.77348167,0.00043256,2]
[404905175,1770671518410,-500.0,0.00043287,120]
[404905176,1770671518419,-500.0,0.00043287,120]
[404905177,1770671518429,-592.49834387,0.00043287,120]
[404905178,1770671518438,-50000.0,0.000433,120]
[404905179,1770671518449,-2000.0,0.000433,2]
[404905180,1770671518462,-1039.72,0.000434,120]
[404905181,1770671518471,-50000.0,0.000434,120]
[404905182,1770671518481,-164.0,0.0004343,16]
[404905183,1770671518490,-840.0,0.00043483,16]
[404905184,1770671518499,-164.0,0.00043486,16]
[404905185,1770671518511,-164.0,0.00043494,16]
[404905186,1770671518520,-164.0,0.00043494,16]
[404905187,1770671518530,-50000.0,0.000435,120]
[404905188,1770671518539,-63183.0,0.000435,30]
[404905189,1770671518549,-95611.45922303,0.000435,120]
[404905190,1770671518559,-840.0,0.00043549,16]
[404905191,1770671518568,-34574.0,0.00043552,30]
[404905192,1770671518577,-50000.0,0.000436,120]
[404905193,1770671518587,-10000.0,0.00043607,120]
[404905194,1770671518595,-153.0,0.000437,120]
[404905195,1770671518606,-211178.15596187,0.000437,120]
[404905196,1770671518616,-168.91335171,0.000437,30]
[404905197,1770671518626,-50000.0,0.000437,120]
[404905198,1770671518635,-30543.9547496,0.0004375,120]
[404905199,1770671518645,-3546.55,0.0004375,120]
[404905200,1770671518654,-100665.66103842,0.0004377,120]
[404905201,1770671518663,-840.0,0.0004378,16]
[404905202,1770671518672,-319.0,0.0004378,16]
[404905203,1770671518682,-303.97164908,0.000438,120]
[404905204,1770671518692,-68654.79178881,0.000438,120]
[404905205,1770671518701,-15727.49415587,0.000438,120]
[404905206,1770671518711,-150.0,0.000438,72]
[404905207,1770671518720,-840.0,0.00043803,16]
[404905208,1770671518730,-164.0,0.00043804,16]
[404905209,1770671518740,-840.0,0.00043804,16]
[404905210,1770671518750,-151.0,0.00043836,120]
[404905211,1770671518759,-151.0,0.00043836,120]
[404905212,1770671518768,-151.0,0.00043836,120]
[404905213,1770671518777,-151.0,0.00043836,120]
[404905214,1770671518786,-151.0,0.00043836,120]
[404905215,1770671518800,-151.0,0.00043836,120]
[404905216,1770671518810,-151.0,0.00043836,120]
[404905217,1770671518819,-155.510683,0.00043836,120]
[404905218,1770671518828,-156.951988,0.00043836,120]
[404905219,1770671518837,-156.951988,0.00043836,120]
[404905220,1770671518846,-156.951988,0.00043836,120]
[404905221,1770671518856,-156.951988,0.00043836,120]
[404905222,1770671518865,-156.951988,0.00043836,120]
[404905223,1770671518874,-156.951988,0.00043836,120]
[404905224,1770671518883,-156.951988,0.00043836,120]
[404905225,1770671518892,-156.951988,0.00043836,120]
[404905226,1770671518900,-156.951988,0.00043836,120]
[404905227,1770671518910,-156.951988,0.00043836,120]
[404905228,1770671518919,-156.951988,0.00043836,120]
[404905229,1770671518928,-156.951988,0.00043836,120]
[404905230,1770671518937,-156.951988,0.00043836,120]
[404905231,1770671518946,-156.951988,0.00043836,120]
[404905232,1770671518956,-156.951988,0.00043836,120]
[404905233,1770671518966,-156.951988,0.00043836,120]
[404905234,1770671518977,-156.951988,0.00043836,120]
[404905235,1770671518986,-156.951988,0.00043836,120]
[404905236,1770671518995,-156.951988,0.00043836,120]
[404905237,1770671519006,-156.951996,0.00043836,120]
[404905238,1770671519016,-14159.22,0.00043836,120]
[404905239,1770671519027,-2827.0,0.00043839,16]
[404905240,1770671519036,-840.0,0.00043869,16]
[404905241,1770671519046,-15491.1588883,0.000439,120]
[404905242,1770671519059,-16816.21953069,0.000439,120]
[404905243,1770671519068,-500.0,0.00043973,10]
[404905244,1770671519077,-500.0,0.00043973,10]
[404905245,1770671519086,-500.0,0.00043973,10]
[404905246,1770671519095,-500.0,0.00043973,10]
[404905247,1770671519104,-500.0,0.00043973,10]
[404905248,1770671519113,-500.0,0.00043973,5]
[404905249,1770671519123,-500.0,0.00043973,10]
[404905250,1770671519131,-500.0,0.00043973,10]
[404905251,1770671519140,-500.0,0.00043973,10]
[404905252,1770671519149,-500.0,0.00043973,10]
[404905253,1770671519158,-500.0,0.00043973,10]
[404905254,1770671519167,-500.0,0.00043973,10]
[404905255,1770671519176,-500.0,0.00043973,10]
[404905256,1770671519185,-500.0,0.00043973,10]
[404905257,1770671519194,-500.0,0.00043973,10]
[404905258,1770671519203,-500.0,0.00043973,10]
[404905259,1770671519214,-500.0,0.00043973,10]
[404905260,1770671519223,-574.77684234,0.00043973,10]
[404905261,1770671519232,-609.49416321,0.00043973,10]
[404905262,1770671519242,-200.12188114,0.00043973,8]
[404905263,1770671519252,-500.0,0.00043973,10]
[404905264,1770671519261,-500.0,0.00043973,10]
[404905265,1770671519271,-520.97702983,0.00043973,7]
[404905266,1770671519280,-500.0,0.00043973,10]
[404905267,1770671519289,-160.17494693,0.00043973,2]
[404905268,1770671519298,-160.0383025,0.00043973,2]
[404905269,1770671519308,-500.0,0.00043973,10]
[404905270,1770671519316,-160.19936031,0.00043973,10]
[404905271,1770671519326,-160.1813854,0.00043973,10]
[404905272,1770671519335,-500.0,0.00043973,10]
[404905273,1770671519344,-500.0,0.00043973,3]
[404905274,1770671519354,-500.0,0.00043973,10]
[404905275,1770671519364,-327.45326444,0.00043973,10]
[404905276,1770671519373,-160.18233673,0.00043973,10]
[404905277,1770671519383,-500.0,0.00043973,10]
[404905278,1770671519392,-500.0,0.00043973,10]
[404905279,1770671519401,-500.0,0.00043973,10]
[404905280,1770671519410,-500.0,0.00043973,10]
[404905281,1770671519420,-160.18233702,0.00043973,2]
[404905282,1770671519429,-160.18233673,0.00043973,2]
[404905283,1770671519438,-500.0,0.00043973,10]
[404905284,1770671519447,-160.18233673,0.00043973,2]
[404905285,1770671519456,-500.0,0.00043973,10]
[404905286,1770671519467,-160.1663508,0.00043973,10]
[404905287,1770671519477,-500.0,0.00043973,10]
[404905288,1770671519486,-500.0,0.00043973,10]
[404905289,1770671519495,-160.18233702,0.00043973,2]
[404905290,1770671519505,-160.18233702,0.00043973,2]
[404905291,1770671519514,-500.0,0.00043973,10]
[404905292,1770671519525,-500.0,0.00043973,10]
[404905293,1770671519534,-500.0,0.00043973,10]
[404905294,1770671519543,-500.0,0.00043973,10]
[404905295,1770671519552,-500.0,0.00043973,10]
[404905296,1770671519562,-500.0,0.00043973,10]
[404905297,1770671519571,-500.0,0.00043973,10]
[404905298,1770671519581,-151.0,0.00043984,120]
[404905299,1770671519591,-158812.0628192,0.00043987,120]
[404905300,1770671519600,-34574.0,0.00043997,30]
[404905301,1770671519611,-33731.57511879,0.00044,8]
[404905302,1770671519621,-7277.6718575,0.00044,30]
[404905303,1770671519632,-180.31815561,0.00044,2]
[404905304,1770671519642,-681.39,0.00044,14]
[404905305,1770671519651,-160.0,0.00044,30]
[404905306,1770671519661,-19264.03387321,0.00044,30]
[404905307,1770671519670,-2118.36,0.00044,30]
[404905308,1770671519681,-164.0,0.00044067,16]
[404905309,1770671519690,-155.0,0.000441,120]
[404905310,1770671519700,-8522.87,0.00044109,120]
[404905311,1770671519709,-8522.87,0.00044109,120]
[404905312,1770671519719,-8522.87,0.00044109,120]
[404905313,1770671519728,-8522.87,0.00044109,120]
[404905314,1770671519738,-8522.87,0.00044109,120]
[404905315,1770671519748,-8522.87,0.00044109,120]
[404905316,1770671519757,-8522.87,0.00044109,120]
[404905317,1770671519766,-8522.87,0.00044109,120]
[404905318,1770671519776,-8522.87,0.00044109,120]
[404905319,1770671519786,-8522.87,0.00044109,120]
[404905320,1770671519795,-8522.87,0.00044109,120]
[404905321,1770671519806,-8522.87,0.00044109,120]
[404905322,1770671519816,-8522.87,0.00044109,120]
[404905323,1770671519827,-8522.87,0.00044109,120]
[404905324,1770671519837,-8522.87,0.00044109,120]
[404905325,1770671519849,-8522.87,0.00044109,120]
[404905326,1770671519859,-8522.87,0.00044109,120]
[404905327,1770671519868,-8522.87,0.00044109,120]
[404905328,1770671519878,-8522.87,0.00044109,120]
[404905329,1770671519888,-8522.87,0.00044109,120]
[404905330,1770671519897,-8522.87,0.00044109,120]
[404905331,1770671519907,-8522.87,0.00044109,120]
[404905332,1770671519916,-8522.87,0.00044109,120]
[404905333,1770671519928,-8523.04349783,0.00044109,120]
[404905334,1770671519937,-2875.0,0.00044123,16]
[404905335,1770671519949,-164.0,0.00044126,16]
[404905336,1770671519959,-164.0,0.00044146,16]
[404905337,1770671519968,-2199.72,0.00044158,120]
[404905338,1770671519981,-1155.77877889,0.00044161,10]
[404905339,1770671519991,-181.54678329,0.00044161,30]
[404905340,1770671520002,-164.0,0.00044314,16]
[404905341,1770671520012,-5074.62513612,0.00044321,14]
[404905342,1770671520025,-5800.0,0.00044321,14]
[404905343,1770671520035,-5800.0,0.00044329,14]
[404905344,1770671520045,-130745.7394353,0.0004435,120]
[404905345,1770671520058,-156.57077507,0.00044353,120]
[404905346,1770671520069,-2658.34,0.00044356,120]
[404905347,1770671520079,-348.75062393,0.00044356,120]
[404905348,1770671520090,-200.0,0.00044356,120]
[404905349,1770671520099,-406.0,0.00044356,2]
[404905350,1770671520109,-406.0,0.00044356,2]
[404905351,1770671520118,-394.0,0.00044356,2]
[404905352,1770671520128,-391.0,0.00044356,2]
[404905353,1770671520137,-391.0,0.00044356,2]
[404905354,1770671520146,-391.0,0.00044356,2]
[404905355,1770671520155,-391.0,0.00044356,2]
[404905356,1770671520165,-391.0,0.00044356,2]
[404905357,1770671520175,-213.0,0.00044356,2]
[404905358,1770671520184,-500.0,0.00044356,120]
[404905359,1770671520194,-310.72048062,0.00044356,120]
[404905360,1770671520205,-500.0,0.00044356,120]
[404905361,1770671520216,-257.1490003,0.00044356,120]
[404905362,1770671520225,-200.0,0.00044356,120]
[404905363,1770671520235,-2404.23,0.00044356,120]
[404905364,1770671520246,-2404.23,0.00044356,120]
[404905365,1770671520255,-2404.23,0.00044356,120]
[404905366,1770671520265,-2404.23,0.00044356,120]
[404905367,1770671520275,-2404.23,0.00044356,120]
[404905368,1770671520284,-2404.23,0.00044356,120]
[404905369,1770671520294,-2404.23,0.00044356,120]
[404905370,1770671520304,-2404.23,0.00044356,120]
[404905371,1770671520313,-2404.23,0.00044356,120]
[404905372,1770671520323,-2404.23,0.00044356,120]
[404905373,1770671520334,-2404.23,0.00044356,120]
[404905374,1770671520343,-2404.23,0.00044356,120]
[404905375,1770671520353,-2404.23,0.00044356,120]
[404905376,1770671520363,-2404.23,0.00044356,120]
[404905377,1770671520372,-2404.23,0.00044356,120]
[404905378,1770671520382,-2404.23,0.00044356,120]
[404905379,1770671520392,-2404.23,0.00044356,120]
[404905380,1770671520402,-2404.23,0.00044356,120]
[404905381,1770671520411,-2404.23,0.00044356,120]
[404905382,1770671520421,-2404.23,0.00044356,120]
[404905383,1770671520430,-2404.23,0.00044356,120]
[404905384,1770671520439,-2404.23,0.00044356,120]
[404905385,1770671520449,-2404.23,0.00044356,120]
[404905386,1770671520459,-2404.41030158,0.00044356,120]
[404905387,1770671520469,-500.0,0.00044356,120]
[404905388,1770671520479,-150.63596335,0.00044356,120]
[404905389,1770671520489,-500.0,0.00044356,120]
[404905390,1770671520498,-500.0,0.00044356,120]
[404905391,1770671520508,-500.0,0.00044356,120]
[404905392,1770671520518,-500.0,0.00044356,120]
[404905393,1770671520527,-500.0,0.00044356,120]
[404905394,1770671520537,-560.37977117,0.00044356,120]
[404905395,1770671520546,-500.0,0.00044356,7]
[404905396,1770671520555,-500.0,0.00044356,7]
[404905397,1770671520565,-500.0,0.00044356,7]
[404905398,1770671520574,-500.0,0.00044356,7]
[404905399,1770671520584,-500.0,0.00044356,7]
[404905400,1770671520594,-500.0,0.00044356,7]
[404905401,1770671520603,-500.0,0.00044356,7]
[404905402,1770671520613,-500.0,0.00044356,7]
[404905403,1770671520622,-605.0219145,0.00044356,7]
[404905404,1770671520632,-3611.58,0.00044356,120]
[404905405,1770671520641,-3611.58,0.00044356,120]
[404905406,1770671520651,-3611.58,0.00044356,120]
[404905407,1770671520660,-3611.58,0.00044356,120]
[404905408,1770671520670,-3611.58,0.00044356,120]
[404905409,1770671520679,-3611.58,0.00044356,120]
[404905410,1770671520689,-3611.58,0.00044356,120]
[404905411,1770671520698,-3611.58,0.00044356,120]
[404905412,1770671520708,-3611.58,0.00044356,120]
[404905413,1770671520718,-3611.58,0.00044356,120]
[404905414,1770671520728,-3611.58,0.00044356,120]
[404905415,1770671520738,-3611.58,0.00044356,120]
[404905416,1770671520749,-3611.58,0.00044356,120]
[404905417,1770671520758,-3611.58,0.00044356,120]
[404905418,1770671520768,-3611.58,0.00044356,120]
[404905419,1770671520777,-3611.58,0.00044356,120]
[404905420,1770671520787,-3611.58,0.00044356,120]
[404905421,1770671520796,-3611.58,0.00044356,120]
[404905422,1770671520805,-3611.58,0.00044356,120]
[404905423,1770671520816,-3611.58,0.00044356,120]
[404905424,1770671520825,-3611.58,0.00044356,120]
[404905425,1770671520835,-3611.58,0.00044356,120]
[404905426,1770671520844,-3611.58,0.00044356,120]
[404905427,1770671520854,-3611.58,0.00044356,120]
[404905428,1770671520864,-1150.76,0.00044356,120]
[404905429,1770671520874,-1150.76,0.00044356,120]
[404905430,1770671520883,-1150.76,0.00044356,120]
[404905431,1770671520893,-1150.76,0.00044356,120]
[404905432,1770671520902,-1150.76,0.00044356,120]
[404905433,1770671520911,-1150.76,0.00044356,120]
[404905434,1770671520921,-1150.76,0.00044356,120]